Workbook

Sheet Interpolation
B1: X | C1: Y | D1: F'(xi) | E1: f''i(Xi-1) | F1: f''i(xi) | G1: di | H1: ci | I1: bi | J1: ai | L1: Check- to see whether Y co-ords match correctly
B2: 0 | C2: 30 | D2: =((3*(C3-C2))/(2*(B3-B2))-(D3/2)) -> 14.09090909 | L2: =J3+(I3*B2) + (H3*(B2^2)) + (G3*(B2^3)) -> 30
B3: 10 | C3: 130 | D3: =2 / (((B4-B3)/(C4-C3)) + ((B3-B2)/(C3-C2))) -> 1.818181818 | E3: =-(2*(D3+(2*D2)) / (B3-B2)) + (6 *( (C3-C2)/((B3-B2)^2))) -> 0 | F3: =(2*((2*D3)+D2) / (B3-B2)) - (6 *( (C3-C2)/((B3-B2)^2))) -> -2.454545455 | G3: =(F3-E3)/(6*(B3-B2)) -> -0.04090909091 | H3: =((B3*E3) - (B2*F3)) / (2*(B3-B2)) -> 0 | I3: =((C3-C2) - (H3*(B3^2 - B2^2)) - (G3*(B3^3 - B2^3)) ) / (B3-B2) -> 14.09090909 | J3: =C2-(I3*B2)-(H3*(B2^2))-(G3*(B2^3)) -> 30 | L3: 130
B4: 30 | C4: 150 | D4: 0 | E4: -0.06363636364 | F4: -0.1181818182 | G4: -0.0004545454545 | H4: =((B4*E4) - (B3*F4)) / (2*(B4-B3)) -> -0.01818181818 | I4: 2.318181818 | J4: 109.0909091 | L4: 150
B5: 50 | C5: 150 | D5: 0 | E5: 0 | F5: 0 | G5: 0 | H5: 0 | I5: 0 | J5: 150 | L5: 150
B6: 70 | C6: 170 | D6: =2 / (((B7-B6)/(C7-C6)) + ((B6-B5)/(C6-C5))) -> 1.428571429 | E6: 0.1571428571 | F6: -0.01428571429 | G6: -0.001428571429 | H6: 0.2928571429 | I6: -18.57142857 | J6: 525 | L6: 170
B7: 90 | C7: 220 | D7: =2 / (((B8-B7)/(C8-C7)) + ((B7-B6)/(C7-C6))) -> 4 | E7: 0.06428571429 | F7: 0.1928571429 | G7: 0.001071428571 | H7: -0.1928571429 | I7: 12.67857143 | J7: -140 | L7: 220
B8: 100 | C8: 320 | D8: =((3 * (C8-C7)) /( 2 * (B8-B7))) - (D7/2) -> 13 | E8: 1.8 | F8: =(2*((2*D8)+D7) / (B8-B7)) - (6 *( (C8-C7)/((B8-B7)^2))) -> 0 | G8: =(F8-E8)/(6*(B8-B7)) -> -0.03 | H8: =((B8*E8) - (B7*F8)) / (2*(B8-B7)) -> 9 | I8: -887 | J8: =C7-(I8*B7)-(H8*(B7^2))-(G8*(B7^3)) -> 29020 | L8: =J8+(I8*B8) + (H8*(B8^2)) + (G8*(B8^3)) -> 320
B15: X | C15: Y(Linear Interp) | E15: X | F15: Y (Constrained Spline Interp)
B16: 0 | C16: =interpolate(B16,$C$2:$C$8,$B$2:$B$8) -> 30 | E16: 0 | F16: =SplineInterpolation(E16,$C$2:$C$8,$B$2:$B$8) -> 30
B17: 0.5 | C17: =interpolate(B17,$C$2:$C$8,$B$2:$B$8) -> 35 | E17: 0.5 | F17: =SplineInterpolation(E17,$C$2:$C$8,$B$2:$B$8) -> 37.04034091
B18: =B17+0.5 -> 1 | C18: 40 | E18: =E17+0.5 -> 1 | F18: 44.05
B19: 1.5 | C19: 45 | E19: 1.5 | F19: 50.99829545
B20: 2 | C20: 50 | E20: 2 | F20: 57.85454545
B21: 2.5 | C21: =interpolate(B21,$C$2:$C$8,$B$2:$B$8) -> 55 | E21: 2.5 | F21: 64.58806818
B22: 3 | C22: 60 | E22: 3 | F22: 71.16818182
B23: 3.5 | C23: 65 | E23: 3.5 | F23: 77.56420455
B24: 4 | C24: 70 | E24: 4 | F24: 83.74545455
B25: 4.5 | C25: 75 | E25: 4.5 | F25: 89.68125
B26: 5 | C26: 80 | E26: 5 | F26: 95.34090909
B27: 5.5 | C27: 85 | E27: 5.5 | F27: 100.69375
B28: 6 | C28: 90 | E28: 6 | F28: 105.7090909
B29: 6.5 | C29: 95 | E29: 6.5 | F29: 110.35625
B30: 7 | C30: 100 | E30: 7 | F30: 114.6045455
B31: 7.5 | C31: 105 | E31: 7.5 | F31: 118.4232955
B32: 8 | C32: 110 | E32: 8 | F32: 121.7818182
B33: 8.5 | C33: 115 | E33: 8.5 | F33: 124.6494318
B34: 9 | C34: 120 | E34: 9 | F34: 126.9954545
B35: 9.5 | C35: 125 | E35: 9.5 | F35: 128.7892045
B36: 10 | C36: 130 | E36: 10 | F36: 130
B37: 10.5 | C37: 130.5 | E37: 10.5 | F37: 130.9010795
B38: 11 | C38: 131 | E38: 11 | F38: 131.7859091
B39: 11.5 | C39: 131.5 | E39: 11.5 | F39: 132.6541477
B40: 12 | C40: 132 | E40: 12 | F40: 133.5054545
B41: 12.5 | C41: 132.5 | E41: 12.5 | F41: 134.3394886
B42: 13 | C42: 133 | E42: 13 | F42: 135.1559091
B43: 13.5 | C43: 133.5 | E43: 13.5 | F43: 135.954375
B44: 14 | C44: 134 | E44: 14 | F44: 136.7345455
B45: 14.5 | C45: 134.5 | E45: 14.5 | F45: 137.4960795
B46: 15 | C46: 135 | E46: 15 | F46: 138.2386364
B47: 15.5 | C47: 135.5 | E47: 15.5 | F47: 138.961875
B48: 16 | C48: 136 | E48: 16 | F48: 139.6654545
B49: 16.5 | C49: 136.5 | E49: 16.5 | F49: 140.3490341
B50: 17 | C50: 137 | E50: 17 | F50: 141.0122727
B51: 17.5 | C51: 137.5 | E51: 17.5 | F51: 141.6548295
B52: 18 | C52: 138 | E52: 18 | F52: 142.2763636
B53: 18.5 | C53: 138.5 | E53: 18.5 | F53: 142.8765341
B54: 19 | C54: 139 | E54: 19 | F54: 143.455
B55: 19.5 | C55: 139.5 | E55: 19.5 | F55: 144.0114205
B56: 20 | C56: 140 | E56: 20 | F56: 144.5454545
B57: 20.5 | C57: 140.5 | E57: 20.5 | F57: 145.0567614
B58: 21 | C58: 141 | E58: 21 | F58: 145.545
B59: 21.5 | C59: 141.5 | E59: 21.5 | F59: 146.0098295
B60: 22 | C60: 142 | E60: 22 | F60: 146.4509091
B61: 22.5 | C61: 142.5 | E61: 22.5 | F61: 146.8678977
B62: 23 | C62: 143 | E62: 23 | F62: 147.2604545
B63: 23.5 | C63: 143.5 | E63: 23.5 | F63: 147.6282386
B64: 24 | C64: 144 | E64: 24 | F64: 147.9709091
B65: 24.5 | C65: 144.5 | E65: 24.5 | F65: 148.288125
B66: 25 | C66: 145 | E66: 25 | F66: 148.5795455
B67: 25.5 | C67: 145.5 | E67: 25.5 | F67: 148.8448295
B68: 26 | C68: 146 | E68: 26 | F68: 149.0836364
B69: 26.5 | C69: 146.5 | E69: 26.5 | F69: 149.295625
B70: 27 | C70: 147 | E70: 27 | F70: 149.4804545
B71: 27.5 | C71: 147.5 | E71: 27.5 | F71: 149.6377841
B72: 28 | C72: 148 | E72: 28 | F72: 149.7672727
B73: 28.5 | C73: 148.5 | E73: 28.5 | F73: 149.8685795
B74: 29 | C74: 149 | E74: 29 | F74: 149.9413636
B75: 29.5 | C75: 149.5 | E75: 29.5 | F75: 149.9852841
B76: 30 | C76: 150 | E76: 30 | F76: 150
B77: 30.5 | C77: 150 | E77: 30.5 | F77: 150
B78: 31 | C78: 150 | E78: 31 | F78: 150
B79: 31.5 | C79: 150 | E79: 31.5 | F79: 150
B80: 32 | C80: =interpolate(B80,$C$2:$C$8,$B$2:$B$8) -> 150 | E80: 32 | F80: =SplineInterpolation(E80,$C$2:$C$8,$B$2:$B$8) -> 150
B81: 32.5 | C81: 150 | E81: 32.5 | F81: 150
B82: =B81+0.5 -> 33 | C82: 150 | E82: =E81+0.5 -> 33 | F82: 150
B83: 33.5 | C83: 150 | E83: 33.5 | F83: 150
B84: 34 | C84: 150 | E84: 34 | F84: 150
B85: 34.5 | C85: 150 | E85: 34.5 | F85: 150
B86: 35 | C86: 150 | E86: 35 | F86: 150
B87: 35.5 | C87: 150 | E87: 35.5 | F87: 150
B88: 36 | C88: 150 | E88: 36 | F88: 150
B89: 36.5 | C89: 150 | E89: 36.5 | F89: 150
B90: 37 | C90: 150 | E90: 37 | F90: 150
B91: 37.5 | C91: 150 | E91: 37.5 | F91: 150
B92: 38 | C92: 150 | E92: 38 | F92: 150
B93: 38.5 | C93: 150 | E93: 38.5 | F93: 150
B94: 39 | C94: 150 | E94: 39 | F94: 150
B95: 39.5 | C95: 150 | E95: 39.5 | F95: 150
B96: 40 | C96: 150 | E96: 40 | F96: 150
B97: 40.5 | C97: 150 | E97: 40.5 | F97: 150
B98: 41 | C98: 150 | E98: 41 | F98: 150
B99: 41.5 | C99: 150 | E99: 41.5 | F99: 150
B100: 42 | C100: 150 | E100: 42 | F100: 150
B101: 42.5 | C101: 150 | E101: 42.5 | F101: 150
B102: 43 | C102: 150 | E102: 43 | F102: 150
B103: 43.5 | C103: 150 | E103: 43.5 | F103: 150
B104: 44 | C104: 150 | E104: 44 | F104: 150
B105: 44.5 | C105: 150 | E105: 44.5 | F105: 150
B106: 45 | C106: 150 | E106: 45 | F106: 150
B107: 45.5 | C107: 150 | E107: 45.5 | F107: 150
B108: 46 | C108: 150 | E108: 46 | F108: 150
B109: 46.5 | C109: 150 | E109: 46.5 | F109: 150
B110: 47 | C110: 150 | E110: 47 | F110: 150
B111: 47.5 | C111: 150 | E111: 47.5 | F111: 150
B112: 48 | C112: 150 | E112: 48 | F112: 150
B113: 48.5 | C113: 150 | E113: 48.5 | F113: 150
B114: 49 | C114: 150 | E114: 49 | F114: 150
B115: 49.5 | C115: 150 | E115: 49.5 | F115: 150
B116: 50 | C116: 150 | E116: 50 | F116: 150
B117: 50.5 | C117: 150.5 | E117: 50.5 | F117: 150.0194643
B118: 51 | C118: 151 | E118: 51 | F118: 150.0771429
B119: 51.5 | C119: 151.5 | E119: 51.5 | F119: 150.1719643
B120: 52 | C120: 152 | E120: 52 | F120: 150.3028571
B121: 52.5 | C121: 152.5 | E121: 52.5 | F121: 150.46875
B122: 53 | C122: 153 | E122: 53 | F122: 150.6685714
B123: 53.5 | C123: 153.5 | E123: 53.5 | F123: 150.90125
B124: 54 | C124: 154 | E124: 54 | F124: 151.1657143
B125: 54.5 | C125: 154.5 | E125: 54.5 | F125: 151.4608929
B126: 55 | C126: 155 | E126: 55 | F126: 151.7857143
B127: 55.5 | C127: 155.5 | E127: 55.5 | F127: 152.1391071
B128: 56 | C128: 156 | E128: 56 | F128: 152.52
B129: 56.5 | C129: 156.5 | E129: 56.5 | F129: 152.9273214
B130: 57 | C130: 157 | E130: 57 | F130: 153.36
B131: 57.5 | C131: 157.5 | E131: 57.5 | F131: 153.8169643
B132: 58 | C132: 158 | E132: 58 | F132: 154.2971429
B133: 58.5 | C133: 158.5 | E133: 58.5 | F133: 154.7994643
B134: 59 | C134: 159 | E134: 59 | F134: 155.3228571
B135: 59.5 | C135: 159.5 | E135: 59.5 | F135: 155.86625
B136: 60 | C136: 160 | E136: 60 | F136: 156.4285714
B137: 60.5 | C137: 160.5 | E137: 60.5 | F137: 157.00875
B138: 61 | C138: 161 | E138: 61 | F138: 157.6057143
B139: 61.5 | C139: 161.5 | E139: 61.5 | F139: 158.2183929
B140: 62 | C140: 162 | E140: 62 | F140: 158.8457143
B141: 62.5 | C141: 162.5 | E141: 62.5 | F141: 159.4866071
B142: 63 | C142: 163 | E142: 63 | F142: 160.14
B143: 63.5 | C143: 163.5 | E143: 63.5 | F143: 160.8048214
B144: 64 | C144: =interpolate(B144,$C$2:$C$8,$B$2:$B$8) -> 164 | E144: 64 | F144: =SplineInterpolation(E144,$C$2:$C$8,$B$2:$B$8) -> 161.48
B145: 64.5 | C145: 164.5 | E145: 64.5 | F145: 162.1644643
B146: =B145+0.5 -> 65 | C146: 165 | E146: =E145+0.5 -> 65 | F146: 162.8571429
B147: 65.5 | C147: 165.5 | E147: 65.5 | F147: 163.5569643
B148: 66 | C148: 166 | E148: 66 | F148: 164.2628571
B149: 66.5 | C149: 166.5 | E149: 66.5 | F149: 164.97375
B150: 67 | C150: 167 | E150: 67 | F150: 165.6885714
B151: 67.5 | C151: 167.5 | E151: 67.5 | F151: 166.40625
B152: 68 | C152: 168 | E152: 68 | F152: 167.1257143
B153: 68.5 | C153: 168.5 | E153: 68.5 | F153: 167.8458929
B154: 69 | C154: 169 | E154: 69 | F154: 168.5657143
B155: 69.5 | C155: 169.5 | E155: 69.5 | F155: =SplineInterpolation(E155,$C$2:$C$8,$B$2:$B$8) -> 169.2841071
B156: 70 | C156: 170 | E156: 70 | F156: =SplineInterpolation(E156,$C$2:$C$8,$B$2:$B$8) -> 170
B157: 70.5 | C157: 171.25 | E157: 70.5 | F157: =SplineInterpolation(E157,$C$2:$C$8,$B$2:$B$8) -> 170.7224554
B158: 71 | C158: 172.5 | E158: 71 | F158: =SplineInterpolation(E158,$C$2:$C$8,$B$2:$B$8) -> 171.4617857
B159: 71.5 | C159: 173.75 | E159: 71.5 | F159: 172.2187946
B160: 72 | C160: 175 | E160: 72 | F160: 172.9942857
B161: 72.5 | C161: 176.25 | E161: 72.5 | F161: 173.7890625
B162: 73 | C162: 177.5 | E162: 73 | F162: 174.6039286
B163: 73.5 | C163: 178.75 | E163: 73.5 | F163: 175.4396875
B164: 74 | C164: 180 | E164: 74 | F164: =SplineInterpolation(E164,$C$2:$C$8,$B$2:$B$8) -> 176.2971429
B165: 74.5 | C165: 181.25 | E165: 74.5 | F165: 177.1770982
B166: 75 | C166: 182.5 | E166: 75 | F166: 178.0803571
B167: 75.5 | C167: 183.75 | E167: 75.5 | F167: =SplineInterpolation(E167,$C$2:$C$8,$B$2:$B$8) -> 179.0077232
B168: 76 | C168: 185 | E168: 76 | F168: 179.96
B169: 76.5 | C169: 186.25 | E169: 76.5 | F169: 180.9379911
B170: 77 | C170: 187.5 | E170: 77 | F170: 181.9425
B171: 77.5 | C171: 188.75 | E171: 77.5 | F171: 182.9743304
B172: 78 | C172: 190 | E172: 78 | F172: 184.0342857
B173: 78.5 | C173: 191.25 | E173: 78.5 | F173: 185.1231696
B174: 79 | C174: 192.5 | E174: 79 | F174: 186.2417857
B175: 79.5 | C175: 193.75 | E175: 79.5 | F175: 187.3909375
B176: 80 | C176: 195 | E176: 80 | F176: 188.5714286
B177: 80.5 | C177: 196.25 | E177: 80.5 | F177: 189.7840625
B178: 81 | C178: 197.5 | E178: 81 | F178: 191.0296429
B179: 81.5 | C179: 198.75 | E179: 81.5 | F179: 192.3089732
B180: 82 | C180: 200 | E180: 82 | F180: 193.6228571
B181: 82.5 | C181: 201.25 | E181: 82.5 | F181: 194.9720982
B182: 83 | C182: 202.5 | E182: 83 | F182: 196.3575
B183: 83.5 | C183: 203.75 | E183: 83.5 | F183: 197.7798661
B184: 84 | C184: 205 | E184: 84 | F184: 199.24
B185: 84.5 | C185: 206.25 | E185: 84.5 | F185: 200.7387054
B186: 85 | C186: 207.5 | E186: 85 | F186: 202.2767857
B187: 85.5 | C187: 208.75 | E187: 85.5 | F187: 203.8550446
B188: 86 | C188: 210 | E188: 86 | F188: 205.4742857
B189: 86.5 | C189: 211.25 | E189: 86.5 | F189: 207.1353125
B190: 87 | C190: 212.5 | E190: 87 | F190: 208.8389286
B191: 87.5 | C191: 213.75 | E191: 87.5 | F191: 210.5859375
B192: 88 | C192: 215 | E192: 88 | F192: 212.3771429
B193: 88.5 | C193: 216.25 | E193: 88.5 | F193: 214.2133482
B194: 89 | C194: 217.5 | E194: 89 | F194: 216.0953571
B195: 89.5 | C195: 218.75 | E195: 89.5 | F195: 218.0239732
B196: 90 | C196: 220 | E196: 90 | F196: 220
B197: 90.5 | C197: 225 | E197: 90.5 | F197: 222.22125
B198: 91 | C198: 230 | E198: 91 | F198: 224.87
B199: 91.5 | C199: 235 | E199: 91.5 | F199: 227.92375
B200: 92 | C200: 240 | E200: 92 | F200: 231.36
B201: 92.5 | C201: 245 | E201: 92.5 | F201: 235.15625
B202: 93 | C202: 250 | E202: 93 | F202: 239.29
B203: 93.5 | C203: 255 | E203: 93.5 | F203: 243.73875
B204: 94 | C204: 260 | E204: 94 | F204: 248.48
B205: 94.5 | C205: 265 | E205: 94.5 | F205: 253.49125
B206: 95 | C206: 270 | E206: 95 | F206: 258.75
... 10 more rows
